Cogmind - Beta 14 X2 @@@ ROGUE MODE // 2024.08.03 @ 16:04:56 Player: Minty Result: Destroyed by B-75 Beast with Magnetic Acceleration Cannon Performance ------------- Evolutions (4) 2000 Regions Visited (7) 1400 Robots Destroyed (103) 515 Value Destroyed (3256) 3256 Prototype IDs (9) 180 Alien Tech Used (0) 0 Bonus (333) 333 TOTAL SCORE: 7684 Bonus ------- High Alert Combat Kills 186 Follower Combat Kills 242 Friendly Fire -95 Cogmind --------- Core Integrity 0/850 Matter 300/300 Energy 89/100 System Corruption 11% Temperature Cool (12) Movement Core (150) Ox2 Location -6/Extension Parts ------- > --- POWER (1) -------- (None) > --- PROPULSION (4) --- (None) > --- UTILITY (8) ------ Melee Analysis Suite Launcher Guidance Computer > --- WEAPON (2) ------- Great Maul Phasing Sabre > --- INVENTORY (5) ---- Advanced Heat Sink Arc Projector Gauss Cannon Bore Cannon Precision Grenade Launcher Peak State ------------ > --- POWER ------------ Improved Deuterium Engine > --- PROPULSION ------- Carbon-fiber Leg Carbon-fiber Leg Armored Huge Wheel > --- UTILITY ---------- Structural Scanner Advanced Visual Processing Unit Improved Signal Interpreter Advanced Terrain Scan Processor Melee Analysis Suite Launcher Guidance Computer Hardened Light Armor Plating Improved Shield Generator > --- WEAPON ----------- Great Maul Phasing Sabre > --- INVENTORY -------- Advanced Heat Sink Arc Projector Gauss Cannon Bore Cannon Precision Grenade Launcher [Rating: 53] Favorites ----------- Power Cooled Deuterium Engine Engine Cooled Deuterium Engine Power Core Nuclear Core Propulsion Light Treads Treads Light Treads Leg Carbon-fiber Leg Wheel Wheel Flight Unit Surge Thruster Utility Advanced Visual Processing Unit Device Improved Sensor Array Storage Small Storage Unit Processor Advanced Visual Processing Unit Protection Light Armor Plating Weapon Advanced Beam Rifle Energy Gun Advanced Beam Rifle Energy Cannon Light EM Pulse Cannon Ballistic Gun Autogun Ballistic Cannon Gauss Cannon Launcher Precision Grenade Launcher Impact Weapon Maul Slashing Weapon Phasing Sabre Build | -11 -10 -9 -9 -8 -7 -6 -6 ------- Run | Yrd Mat Mat Min Mat Fac Fac Ext Slots Evolved 8 | . . 2 . 2 2 2 . Power . | . . . . . . . . Propulsion 2 | . . . . 1 1 . . Utility 6 | . . 2 . 1 1 2 . Weapon . | . . . . . . . . Parts Attached 115 | . 4 17 6 30 21 15 22 Power 8 | . . 1 . 3 2 1 1 Engine 7 | . . 1 . 2 2 1 1 Core 1 | . . . . 1 . . . Reactor . | . . . . . . . . Propulsion 30 | . 2 2 2 8 5 6 5 Treads 8 | . . . 2 3 1 1 1 Leg 9 | . . . . 2 2 3 2 Wheel 10 | . 2 2 . . 2 2 2 Hover . | . . . . . . . . Flight 3 | . . . . 3 . . . Utility 31 | . 1 6 1 8 5 3 7 Device 9 | . . . . 2 2 2 3 Storage 2 | . . . . . 2 . . Processor 11 | . . 3 . 4 1 1 2 Hackware . | . . . . . . . . Protection 9 | . 1 3 1 2 . . 2 Artifact . | . . . . . . . . Weapon 46 | . 1 8 3 11 9 5 9 Energy Gun 24 | . 1 6 1 7 6 1 2 Energy Cannon 2 | . . 1 1 . . . . Ballistic Gun 4 | . . . 1 2 . 1 . Ballistic Cannon 1 | . . . . . . 1 . Launcher 10 | . . 1 . 2 2 2 3 Special Weapon . | . . . . . . . . Impact Weapon 3 | . . . . . 1 . 2 Slashing Weapon 2 | . . . . . . . 2 Piercing Weapon . | . . . . . . . . Special Melee Weapon . | . . . . . . . . Unidentified Prototypes 7 | . . . . 3 3 . 1 Corrupted Parts 1 | . . . . 1 . . . System Corruption 1 | . . . . 1 . . . Parts Lost 43 | . . 2 5 2 8 4 22 Power 3 | . . . . . 1 . 2 Propulsion 18 | . . . 2 . 6 2 8 Utility 17 | . . 1 1 2 1 2 10 Weapon 5 | . . 1 2 . . . 2 Highest Loss Streak 9 | . . 2 5 1 3 3 9 To Critical Strikes . | . . . . . . . . Average Slot Usage (%) 85 | . 88 96 91 95 79 74 77 Engine 7 | . 14 11 11 6 6 5 4 Treads 6 | . . . 16 19 2 5 2 Leg 6 | . 21 . . 4 5 7 9 Wheel 4 | . 6 22 . . 2 2 3 Flight 1 | . . . . . 3 . . Device 5 | . . . . 2 10 3 8 Storage 6 | . 14 11 11 6 5 6 2 Processor 25 | . . 24 22 26 28 33 29 Protection 3 | . 3 8 10 7 . . 2 Energy Gun 9 | . 28 18 11 14 5 1 1 Ballistic Gun 1 | . . . 8 2 . 2 1 Impact Weapon 2 | . . . . . 4 . 4 Naked Turns . | . . . . . . . . Heaviest Build 31 | 14 15 17 20 23 31 25 28 Greatest Support 60 | 20 20 20 40 60 26 45 45 Greatest Overweight (x) 8 | . . . 5 4 5 7 8 Average Overweight (x) . | . . . . . 1 . . Largest Inventory Capacity 10 | . 8 8 8 8 10 8 8 Average Capacity 7 | . 8 8 8 7 8 8 6 Most Carried 10 | . 8 8 8 8 10 7 6 Average Carried 7 | . 7 7 6 7 7 6 5 Final Capacity 8 | 8 8 8 8 5 8 8 5 Final Carried 8 | 6 8 8 8 5 8 6 5 Class Distribution -------------------- 50% | Mutant 18% | Assassin 10% | Scavenger-Gladiator 8% | Scavenger-Skirmisher 6% | Scavenger-Mutant 4% | Scavenger-Assassin Dominant Class ---------------- Mutant | -10/Materials Mutant | -9/Materials Mutant | -9/Mines Mutant | -8/Materials Assassin | -7/Factory Scavenger-Mutant | -6/Factory Scavenger-Gladiator | -6/Extension Resources | -11 -10 -9 -9 -8 -7 -6 -6 ----------- Run | Yrd Mat Mat Min Mat Fac Fac Ext Matter Collected 1849 | 200 30 190 51 352 313 226 487 Remotely . | . . . . . . . . Salvage Created 3792 | . 119 732 158 1083 963 287 450 Parts 177 | . 8 46 10 53 27 17 16 Haulers Intercepted 3 | . 1 . . 1 1 . . Recyclers Shooed 3 | . . . . . 1 2 . Parts Field Recycled . | . . . . . . . . Retrieved Matter . | . . . . . . . . Parts Self-Destructed . | . . . . . . . . Prevented . | . . . . . . . . Kills | -11 -10 -9 -9 -8 -7 -6 -6 ------- Run | Yrd Mat Mat Min Mat Fac Fac Ext Combat Hostiles Destroyed 70 | . . 12 3 23 13 6 13 Melee 7 | . . . . . 2 . 5 Guns 35 | . . 7 1 21 5 1 . Cannons 3 | . . 1 . . . 2 . AOE 18 | . . 4 . 2 2 3 7 Classes Destroyed 15 | . 3 6 . 4 2 . . Worker 10 | . 2 3 . . 2 3 . Builder 6 | . 1 . . 2 3 . . Tunneler 3 | . . 1 . . 1 1 . Hauler 3 | . 1 . . 1 1 . . Recycler 6 | . . 1 . 1 4 . . Mechanic 1 | . . . . . 1 . . Operator 2 | . . 1 . 1 . . . Watcher 2 | . . . . 1 . 1 . Swarmer 10 | . . . . 3 3 . 4 Cutter 3 | . . . . 3 . . . Grunt 40 | . . 7 1 12 8 5 7 Duelist 3 | . . 1 . 1 . 1 . Sentry 10 | . . 4 2 2 1 . 1 Hunter 3 | . . . . 2 . . 1 Programmer 1 | . . . . . 1 . . Best Kill Streak 9 | . 3 6 2 9 4 4 4 Combat Bots Only 5 | . . 5 2 4 3 3 4 Max Kills in Single Turn 4 | . 1 4 1 2 1 2 2 Gunslinging . | . . . . . . . . Exploded 3 | . . 3 . 2 1 1 2 Melee 1 | . . . . . 1 . 1 Uniques/NPCs Destroyed . | . . . . . . . . Combat | -11 -10 -9 -9 -8 -7 -6 -6 -------- Run | Yrd Mat Mat Min Mat Fac Fac Ext Hostile Shots Fired 688 | . 12 47 50 94 115 35 335 Missed 245 | . 4 20 15 31 43 10 122 Damage Taken 6038 | . 136 363 454 1073 976 597 2439 Core 1467 | . 40 54 96 189 238 153 697 Absorbed by Shields 118 | . . . . . . . 118 Redirected to Shielding 59 | . 12 3 . 44 . . . Regen/Repaired (Parts) 88 | . . . . . . . 88 Core Remaining (%) 75 | 100 84 . 62 65 66 . . Volleys Fired 200 | . 7 37 20 46 23 39 28 Largest 2 | . 2 2 2 2 2 1 2 Hottest 138 | . 90 90 80 130 138 55 80 Shots Fired 307 | . 14 58 28 93 36 39 39 Gun 260 | . 14 54 28 88 32 14 30 Cannon 24 | . . 3 . 2 . 19 . Launcher 23 | . . 1 . 3 4 6 9 Special . | . . . . . . . . Kinetic 62 | . . . 5 13 . 30 14 Thermal 111 | . 7 3 . 75 26 . . Explosive 23 | . . 1 . 3 4 6 9 Electromagnetic 111 | . 7 54 23 2 6 3 16 Robot Hit Streak 16 | . 7 8 8 13 7 16 12 Robot Miss Streak 5 | . 1 2 3 3 2 3 5 Penetration Max . | . . . . . . . . Secondary Targets 7 | . 1 2 . 3 1 . . Max Gunslinging Chain 1 | . 1 1 . 1 1 . . Shots Hit Robots 271 | . 10 44 21 67 56 30 43 Core Hits 156 | . 5 29 6 45 20 23 28 Critical Kills 4 | . . . . . 1 1 2 Critical Parts Destroyed 13 | . . . . . 10 . 3 Critical Strikes 28 | . . . . 6 14 2 6 Burn 9 | . . . . 6 3 . . Destroy 1 | . . . . . . 1 . Blast 1 | . . . . . . 1 . Smash 17 | . . . . . 11 . 6 Melee Attacks 73 | . . . . . 38 3 32 Impact 67 | . . . . . 38 3 26 Slashing 6 | . . . . . . . 6 Piercing . | . . . . . . . . Sneak Attacks 12 | . . . . . 11 1 . Combat Hostiles 1 | . . . . . 1 . . Follow-up Attacks 6 | . . . . . . . 6 Damage Inflicted 9168 | . 149 810 286 1823 2405 1466 2229 Guns 3059 | . 121 598 281 1314 404 125 216 Cannons 579 | . . 34 . 60 . 485 . Explosions 2629 | . 28 178 . 449 273 685 1016 Melee 2896 | . . . . . 1728 171 997 Ramming 5 | . . . 5 . . . . Kinetic 958 | . . . 34 172 . 590 162 Thermal 1714 | . 52 71 . 1247 344 . . Explosive 2459 | . . 141 . 344 273 685 1016 Electromagnetic 1136 | . 97 598 247 60 60 20 54 Impact 2721 | . . . . . 1728 171 822 Slashing 175 | . . . . . . . 175 Piercing . | . . . . . . . . Highest Corruption 11 | . 4 . . 2 8 . 11 Average Corruption 5 | . 3 . . 1 6 . 10 Corruption Purged . | . . . . . . . . Corruption Blocked . | . . . . . . . . Effects 29 | . . . . 1 25 . 3 Message Errors 5 | . . . . . 5 . . Matter Fused 8 | . . . . . 8 . . Heat Flow Errors 5 | . . . . . 3 . 2 Energy Discharges 2 | . . . . . 2 . . Parts Rejected 1 | . . . . . . . 1 Data Loss (minor) 4 | . . . . . 4 . . Data Loss (major) 2 | . . . . . 2 . . Misfires 1 | . . . . 1 . . . Alerts 1 | . . . . . 1 . . Overload Shots . | . . . . . . . . Overflow Damage 1121 | . . . . 14 838 36 233 Projectiles 1 | . . . . . . 1 . Explosions 155 | . . . . 14 . 35 106 Melee 965 | . . . . . 838 . 127 Knockbacks 15 | . . . . . 8 7 . Impact 9 | . . . . . 8 1 . Kinetic 6 | . . . . . . 6 . Secondary . | . . . . . . . . Self-Inflicted Damage 194 | . 33 . . . . . 161 Shots 5 | . 1 . . . . . 4 Rammed 2 | . . . 2 . . . . Targets Rammed 2 | . . . 2 . . . . Kicked . | . . . . . . . . Crushed . | . . . . . . . . Highest Temperature 309 | . 189 309 248 303 226 2 197 Average Temperature 80 | . 81 88 131 78 34 2 47 Received Heat Transfer 1795 | . 60 171 171 369 243 225 556 Effects 1 | . . . . 1 . . . Energy Bleed 1 | . . . . 1 . . . Siege Activations . | . . . . . . . . Robots Corrupted 10 | . . . 2 . 7 . 1 Combat Hostiles 7 | . . . 2 . 4 . 1 Parts Fried 23 | . 2 2 3 . 14 . 2 Impact Corruptions 30 | . . . . . 27 . 3 Robots Melted . | . . . . . . . . Combat Hostiles . | . . . . . . . . Parts Melted 8 | . . . . 8 . . . Heat Transferred 3641 | . 124 124 . 2542 851 . . Parts Sabotaged . | . . . . . . . . Parts Stolen . | . . . . . . . . Parts Stripped . | . . . . . . . . Power Chain Reactions 3 | . 1 1 . 1 . . . Alert | -11 -10 -9 -9 -8 -7 -6 -6 ------- Run | Yrd Mat Mat Min Mat Fac Fac Ext Peak Influence 620 | . 61 508 277 620 435 404 466 Initial 282 | . . 25 198 107 282 176 197 Average 310 | . 26 250 216 397 343 316 320 Maximum Alert Level 2 | . . 2 1 2 2 2 2 Low Security (%) 16 | . 100 27 10 16 . 19 10 Level 1 54 | . . 55 89 22 66 42 82 Level 2 29 | . . 17 . 60 33 37 6 Level 3 . | . . . . . . . . Level 4 . | . . . . . . . . Level 5 . | . . . . . . . . High Security . | . . . . . . . . Max Security . | . . . . . . . . Squads Dispatched 20 | . 1 1 . 6 5 3 4 Investigation 9 | . 1 . . 1 2 1 4 Extermination 1 | . . . . . 1 . . Reinforcement 10 | . . 1 . 5 2 2 . Assault . | . . . . . . . . Garrison . | . . . . . . . . Intercept . | . . . . . . . . Searches Triggered . | . . . . . . . . Construction Impeded 1 | . . . . 1 . . . Haulers Reinforced 2 | . . . . . 1 1 . Active Scanning Responses . | . . . . . . . . Cargo Convoy Interrupts . | . . . . . . . . Stealth | -11 -10 -9 -9 -8 -7 -6 -6 --------- Run | Yrd Mat Mat Min Mat Fac Fac Ext Distress Signals 12 | . . 4 1 4 . 2 1 Communications Jammed . | . . . . . . . . Distress Signals . | . . . . . . . . Times Spotted 121 | . 3 23 7 37 16 11 24 Peak Tracking Total 7 | . 2 6 3 6 3 7 6 Tactical Retreats 7 | . 1 1 . . 3 1 1 Traps | -11 -10 -9 -9 -8 -7 -6 -6 ------- Run | Yrd Mat Mat Min Mat Fac Fac Ext Traps Triggered 8 | . 2 . . . . 3 3 Indirectly . | . . . . . . . . Trap Hack Attempts . | . . . . . . . . Triggered . | . . . . . . . . Disarmed . | . . . . . . . . Reprogrammed . | . . . . . . . . Reused . | . . . . . . . . Traps Extracted . | . . . . . . . . Installed . | . . . . . . . . Triggered . | . . . . . . . . Machines | -11 -10 -9 -9 -8 -7 -6 -6 ---------- Run | Yrd Mat Mat Min Mat Fac Fac Ext Machines Disabled 9 | . 1 2 1 1 2 . 2 Max in Single Turn 1 | . 1 1 1 1 1 . 1 Machines Repaired . | . . . . . . . . Machines Dismantled . | . . . . . . . . Machines Sabotaged . | . . . . . . . . Overloaded Fab Kills . | . . . . . . . . Hacking | -11 -10 -9 -9 -8 -7 -6 -6 --------- Run | Yrd Mat Mat Min Mat Fac Fac Ext Machines Accessed 23 | . 3 7 . 2 3 1 7 Terminals 18 | . 3 5 . 2 1 1 6 Fabricators 1 | . . . . . 1 . . Repair Stations 2 | . . . . . 1 . 1 Recycling Units 1 | . . 1 . . . . . Scanalyzers 1 | . . 1 . . . . . Garrison Access . | . . . . . . . . Total Hacks 73 | . 12 26 . 7 6 3 19 Successful 27 | . 4 13 . 3 1 1 5 Failed 45 | . 8 12 . 4 5 2 14 Catastrophic 6 | . . 2 . . 3 . 1 Database Lockouts 1 | . . 1 . . . . . Manual 30 | . 4 12 . 4 2 . 8 Terminals 60 | . 12 20 . 7 2 3 16 Fabricators 3 | . . . . . 3 . . Repair Stations 4 | . . . . . 1 . 3 Recycling Units 4 | . . 4 . . . . . Scanalyzers 2 | . . 2 . . . . . Garrison Access . | . . . . . . . . Terminal Hacks 15 | . 3 6 . 2 . 1 3 Robot Analysis 4 | . . 3 . 1 . . . Prototype ID Bank 1 | . 1 . . . . . . Open Door 4 | . . . . . . 1 3 Branch Access Points 1 | . 1 . . . . . . Repair Station Index 1 | . . 1 . . . . . Alert Level 1 | . . 1 . . . . . Locate Traps 1 | . . . . 1 . . . Recall Investigation 1 | . 1 . . . . . . Zone Layout 1 | . . 1 . . . . . Fabricator Hacks 1 | . . . . . 1 . . Load Schematic 1 | . . . . . 1 . . Repair Station Hacks . | . . . . . . . . Recycling Unit Hacks 2 | . . 2 . . . . . Report Inventory 1 | . . 1 . . . . . Retrieve Components 1 | . . 1 . . . . . Scanalyzer 2 | . . 2 . . . . . Insert Component 1 | . . 1 . . . . . Analyze 1 | . . 1 . . . . . Garrison Access Hacks . | . . . . . . . . Unauthorized Hacks 7 | . 1 3 . 1 . . 2 Terminals 6 | . 1 3 . 1 . . 1 Track 1 | . . 1 . . . . . Botnet 5 | . 1 2 . 1 . . 1 Fabricators . | . . . . . . . . Repair Stations 1 | . . . . . . . 1 Patch 1 | . . . . . . . 1 Recycling Units . | . . . . . . . . Scanalyzers . | . . . . . . . . Garrison Access . | . . . . . . . . Data Cores Recovered . | . . . . . . . . Used . | . . . . . . . . Hacking Detections 21 | . 3 7 . 2 3 1 5 Full Trace Events 10 | . 1 2 . 1 2 1 3 Feedback Events 1 | . . . . . 1 . . Corruption 1 | . . . . . 1 . . Feedback Blocked . | . . . . . . . . Robot Schematics Acquired . | . . . . . . . . Robots Built . | . . . . . . . . Authchips . | . . . . . . . . Time . | . . . . . . . . Total Robot Build Rating . | . . . . . . . . Part Schematics Acquired 1 | . . 1 . . . . . Parts Built . | . . . . . . . . Authchips . | . . . . . . . . Time . | . . . . . . . . Total Part Build Rating . | . . . . . . . . Parts Repaired . | . . . . . . . . Time . | . . . . . . . . Parts Recycled . | . . . . . . . . Recycled Matter . | . . . . . . . . Retrieved Matter . | . . . . . . . . Retrieved Components 1 | . . 1 . . . . . Parts Scanalyzed 1 | . . 1 . . . . . Part Schematics Acquired 1 | . . 1 . . . . . Parts Damaged . | . . . . . . . . Bothacking | -11 -10 -9 -9 -8 -7 -6 -6 ------------ Run | Yrd Mat Mat Min Mat Fac Fac Ext Used RIF Installer . | . . . . . . . . Robots Hacked . | . . . . . . . . Non-combat . | . . . . . . . . Combat . | . . . . . . . . Robot Hacks Applied . | . . . . . . . . Relay Couplers Released . | . . . . . . . . Fabnet Peak Effective % . | . . . . . . . . Robots Rewired 7 | . . . . 1 . 2 4 Allies Hacked . | . . . . . . . . Hacks Repelled . | . . . . . . . . Allies | -11 -10 -9 -9 -8 -7 -6 -6 -------- Run | Yrd Mat Mat Min Mat Fac Fac Ext Total Allies 13 | . . . 1 1 . 2 9 Largest Group 4 | . . . 1 1 . 2 4 Highest-Rated Group 110 | . . . 31 31 . 48 110 Highest-Rated Ally 39 | . . . 31 31 . 32 39 Total Orders . | . . . . . . . . Ally Attacks 76 | . . . 4 7 . 6 59 Total Damage 1256 | . . . 64 82 . 189 921 Kills 11 | . . . 2 1 . 2 6 Allies Corrupted . | . . . . . . . . Allies Melted . | . . . . . . . . Intel | -11 -10 -9 -9 -8 -7 -6 -6 ------- Run | Yrd Mat Mat Min Mat Fac Fac Ext Robot Analysis Total 4 | . . 3 . 1 . . . Derelict Logs Recovered . | . . . . . . . . Drone Launches . | . . . . . . . . Drone Recoveries . | . . . . . . . . Exploration | -11 -10 -9 -9 -8 -7 -6 -6 ------------- Run | Yrd Mat Mat Min Mat Fac Fac Ext Turns Passed 3451 | . 216 355 237 712 1086 285 560 Spaces Moved 1769 | 1 158 273 106 345 511 104 271 Core 17 | . . . 8 . . 3 6 Treads 378 | . . . 95 268 7 8 . Legs 482 | 1 102 . . 49 184 58 88 Wheels 804 | . 56 273 3 . 260 35 177 Hover . | . . . . . . . . Flight 88 | . . . . 28 60 . . Fastest Speed 20 | 120 80 80 80 20 69 90 80 Average Speed 131 | 120 105 80 167 148 162 130 106 Slowest Speed 450 | 120 120 80 300 195 330 400 450 Overloaded Moves 29 | . . . . 16 13 . . Propulsion Burnouts . | . . . . . . . . Robots Hopped 2 | . . . . 2 . . . Cave-ins Triggered . | . . . . . . . . Exploration Rate (%) 23 | 1 28 32 35 35 13 4 39 Regions Visited 7 Branch Regions 2 Pre-discovered Areas . | . . . . . . . . Known Exits Taken 3 | . . . . 1 1 1 . Unknown Exits Taken 4 | 1 1 1 1 . . . . Scrap Searched 1 | . . . 1 . . . . Spaces Dug . | . . . . . . . . Terrain Destroyed 159 | . 1 8 . 15 5 30 100 Melee . | . . . . . . . . Projectile 5 | . . . . . . 5 . AOE 154 | . 1 8 . 15 5 25 100 Terrain Rammed . | . . . . . . . . Walls Destroyed . | . . . . . . . . Machines Disabled . | . . . . . . . . Actions | -11 -10 -9 -9 -8 -7 -6 -6 --------- Run | Yrd Mat Mat Min Mat Fac Fac Ext Total 2445 | . 193 349 137 451 654 207 454 Wait 157 | . 17 15 1 2 39 30 53 Move 1758 | . 157 272 105 340 510 103 271 Hop 2 | . . . . 2 . . . Pick Up 32 | . 5 3 2 8 11 1 2 Fast Attach 51 | . 1 . 3 13 10 7 17 Attach 21 | . 3 4 3 3 3 3 2 Detach 8 | . . . 1 1 4 . 2 Swap 43 | . . 13 . 14 8 5 3 Drop 41 | . 3 5 . 20 8 . 5 Fire 200 | . 7 37 20 46 23 39 28 Melee 66 | . . . . . 38 3 25 Ram . | . . . . . . . . Kick . | . . . . . . . . Crush 2 | . . . 2 . . . . Escape Stasis 24 | . . . . . . . 24 Rewire 40 | . . . . 2 . 16 22 Trap . | . . . . . . . . Miscellaneous . | . . . . . . . . Route ------- -11/Scrapyard -10/Materials (discovered 2 exits: *Mat / Min) -9/Materials -9/Mines -8/Materials -7/Factory -6/Factory -6/Extension History --------- Turn | Location | Event 1 | -11/Scrapyard | Discovered new exit (range 0) 1 | -11/Scrapyard | Entered Materials 25 | -10/Materials | Identified exit to Mines 211 | -10/Materials | Discovered new exit (range 7) 217 | -10/Materials | Entered another Materials area 217 | -9/Materials | Evolved 2 slots: Utility x2 319 | -9/Materials | Build established: Mutant 471 | -9/Materials | Discovered new exit (range 12) 489 | -9/Materials | Central database locked down 572 | -9/Materials | Entered Mines 638 | -9/Mines | Lost 5 parts (2n1u2w) 698 | -9/Mines | Received a Mining Laser from a helpful Derelict 798 | -9/Mines | Discovered new exit (range 7) 809 | -9/Mines | Entered Materials 809 | -8/Materials | Accompanied by 1 ally 809 | -8/Materials | Evolved 2 slots: Propulsion x1, Utility x1 1516 | -8/Materials | Discovered new exit (range 12) 1521 | -8/Materials | Identified exit to Factory 1521 | -8/Materials | Entered Factory 1521 | -7/Factory | Evolved 2 slots: Propulsion x1, Utility x1 1609 | -7/Factory | Lost 3 parts (2n1u) 2598 | -7/Factory | Build established: Assassin 2602 | -7/Factory | Discovered new exit (range 4) 2606 | -7/Factory | Identified exit to Factory 2607 | -7/Factory | Entered another Factory area 2607 | -6/Factory | Evolved 2 slots: Utility x2 2690 | -6/Factory | Lost 3 parts (1n2u) 2853 | -6/Factory | Discovered new exit (range 9) 2860 | -6/Factory | Identified exit to Extension 2892 | -6/Factory | Entered Extension 2892 | -6/Extension | Accompanied by 1 ally 2897 | -6/Extension | Disrupted transfer network 2965 | -6/Extension | Rescued a captive Derelict 2966 | -6/Extension | Rescued a captive Derelict 2992 | -6/Extension | Door terminal overloaded 2993 | -6/Extension | Rescued a captive Derelict 3097 | -6/Extension | Core integrity fell below 50% 3109 | -6/Extension | Lost 4 allies 3127 | -6/Extension | Lost 9 parts (1p3n3u2w) 3202 | -6/Extension | Lost 4 allies 3262 | -6/Extension | Rescued a captive Derelict 3337 | -6/Extension | Rescued a captive Derelict 3368 | -6/Extension | Build established: Scavenger-Gladiator 3376 | -6/Extension | System corruption reached 10% 3406 | -6/Extension | Lost 3 parts (3u) 3420 | -6/Extension | Spotted B-75 Beast 3427 | -6/Extension | Spotted B-75 Beast 3447 | -6/Extension | Core integrity fell below 20% 3452 | -6/Extension | Destroyed by B-75 Beast with Magnetic Acceleration Cannon Last Messages --------------- 03418_ Acquired 10 matter. 03421_ Machine disabled. 03425_ W-25 Informer sends out distress signal. 03427_ Machine disabled. 03429_ B-75 Beast suffers critical hit (Burn). 03432_ Carbon-fiber Leg destroyed. 03433_ Y-54 Guardian destroyed. 03435_ System corrupted: Heat flow error (+227). 03436_ Imp. Shield Generator destroyed. 03437_ Structural Scanner destroyed. 03439_ Knocked back. 03440_ Carbon-fiber Leg destroyed. 03440_ Imp. Deuterium Engine destroyed. 03440_ Arm. Huge Wheel destroyed. 03441_ Phasing Sabre follow-up attack on B-75 Beast. 03442_ Imp. Signal Interpreter destroyed. 03442_ Knocked back. 03446_ Phasing Sabre follow-up attack on B-75 Beast. 03447_ W-25 Informer destroyed. 03449_ Knocked back. Map ----- +----------------------------------------------------+ | ####+##### ^ ^##????## ##?????????????????????? | | ### ##????## ##?????????????????????? | | ] = ! ### ####??## ##?????????????????????? | | #########+####??## ##?????????????????????? | | ######### ##??## ##?????????????????????? | | #########?????## ##??## ##?????????????????????? | | #########?????##! ##??## ##?????????????????????? | | ??????????????##] ##??## ##?????????????????????? | | ??????????????##! ##??## ##?????????????????????? | | ??????????????## ##??##[##?????????????????????? | | ??????????????## ##??##%##?????????????????????? | | ??????????????##[ ##??##!##?????????????????????? | | ??????????????## = ##??##%##?????????????????????? | | ??????????????#######??##!##?????????????????????? | | ??????????????#######?###*#########??????????????? | | ?????????????????????#### ########## ????????????? | | ?????????????????????###;%##; ## ### ????????????? | | ?????????????????????#; *%! "" "???????????? | | ?????????????????????## !lY " " ??????????? | | ?????????????????????##% % ??????????? | | ??????????????######### #?????????? | | ??????????############# #?????????? | | ???????? ????????? | | ???????? % ????????? | | ???????? % BB ????????? | | ????????? @BB ????????? | | ????????? BB ????????? | | ?????????############## BB #?????????? | | ?????????############## #?????????? | | ?????????????????????#; #?????????? | | ????????????????????? # ??????????? | | ????????????????????### ??????????? | | ?????????????????????#######T#"""######??????????? | | ??????????????????????######## ? ###?????????????? | | ???????????????????????????####??????????????????? | | | | | | | | | | | | | | | | | | | | | | | | | | | | | | | +----------------------------------------------------+ Best States ------------- Heat Dissipation 48 Energy Generation 31 Energy Capacity 310 Matter Stores 300 Matter Capacity 300 Sight Range 20 Robot Scan Range 15 Terrain Scan Range 14 Terrain Scan Density 210 ECM Strength 2 Armor Coverage 300 Propulsion Shielding 33 Evasion (%) 55 Targeting Accuracy 11 Melee Accuracy 11 Launcher Accuracy 20 Recoil Reduction 3 Item Schematics ----------------- EM Pulse Gun | -9/Materials | Scanalyzed Robot Schematics ------------------ None Fabricated ------------ Nothing Alien Tech Used ----------------- None Achievements -------------- None Challenges ------------ None Game ------ Seed DecoderConcussiveRedirector Manual? 0 Play Time 00:27:44 Cumulative 831.1 hours Start 2024.08.03 @ 15:35:45 End 2024.08.03 @ 16:04:56 Sessions 1 Manual Loads 0 Difficulty Rogue Special Mode None Game No. 986 Rogue 707 Adventurer 124 Explorer 155 Win Type - Total 34 Types 27/0/5/1/0/0/0/1/0 Lore% 70 Gallery% 88 Achievement% 78 Wizard Run 0 Options --------- Layout 0 ASCII 0 Keyboard 1 Movement Numpad Keybinds 0 Fullscreen 2 Font 18/SmallcapsGlow Map View 76x50 Zoom Use 0% Tactical HUD 1 Map Filters NONE Filters NONE Steam 1 RUN: 8e9a5a86-7d89-4e7e-8805-52928bb51ffc